Cogmind - Beta 17.1 @@@ ROGUE MODE // 2026.09.24 @ 17:42:39 Player: MEOWRTGM Result: Destroyed by S-27 Virus with Autogun Performance ------------- Evolutions (4) 2000 Regions Visited (16) 3200 Robots Destroyed (123) 615 Value Destroyed (5080) 5080 Prototype IDs (6) 120 Alien Tech Used (0) 0 Bonus (5365) 5365 TOTAL SCORE: 16380 Bonus ------- High Alert Combat Kills 255 Follower Combat Kills 946 Entered Garrisons 1200 Used RIF Installer 3000 Friendly Fire -36 Cogmind --------- Core Integrity 0/850 Matter 300/300 Energy 99/100 System Corruption 12% Temperature Cool (0) Movement Core (50) Location -6/Garrison Parts ------- > --- POWER (1) -------- (None) > --- PROPULSION (4) --- (None) > --- UTILITY (8) ------ Relay Coupler [Swarmer] (2) > --- WEAPON (2) ------- (None) > --- INVENTORY (5) ---- Micro Nuclear Core Medium Storage Unit Remote Datajack Powered Hammer Peak State ------------ > --- POWER ------------ Micro Nuclear Core > --- PROPULSION ------- Airjet Airjet Improved Gravmag System Improved Gravmag System > --- UTILITY ---------- Medium Storage Unit Enhanced Optical Array Improved Reaction Control System Relay Coupler [NC] Relay Coupler [Swarmer] Relay Coupler [Grunt] Relay Coupler [Sentry] Relay Coupler [Hunter] > --- WEAPON ----------- Remote Datajack Chainsword > --- INVENTORY -------- Micro Nuclear Core VTOL Module VTOL Module Remote Datajack Powered Hammer [Rating: 56] Favorites ----------- Power Light Angular Momentum Engine Engine Light Angular Momentum Engine Power Core Micro Nuclear Core Propulsion Armored Treads Treads Armored Treads Hover Unit Improved Gravmag System Flight Unit VTOL Module Utility Relay Coupler [Sentry] Device Improved Heat Sink Storage High-capacity Storage Unit Processor Enhanced Optical Array Hackware Relay Coupler [Sentry] Protection Hardened Light Armor Plating Weapon Ion Cannon Energy Gun Small Laser Energy Cannon Ion Cannon Ballistic Gun Minigun Launcher Mini Grenade Launcher Special Weapon Remote Datajack Slashing Weapon Chainsword Build | -11 -10 -10 -9 -9 -9 -9 -7 -7 -7 -7 -6 -6 -6 -6 -6 -6 ------- Run | Yrd Mat Min Mat Sto Gar Rec Fac Gar Fac Gar Fac Gar Fac Gar Fac Gar Slots Evolved 8 | . . . 2 . . . 4 . . . 2 . . . . . Power . | . . . . . . . . . . . . . . . . . Propulsion 2 | . . . 1 . . . . . . . 1 . . . . . Utility 6 | . . . 1 . . . 4 . . . 1 . . . . . Weapon . | . . . . . . . . . . . . . . . . . Parts Attached 115 | 8 8 6 14 5 8 1 8 1 7 5 8 13 1 8 9 5 Power 14 | 1 . 1 2 2 2 . . . 1 2 . . . 1 1 1 Engine 7 | 1 . 1 1 1 2 . . . 1 . . . . . . . Core 7 | . . . 1 1 . . . . . 2 . . . 1 1 1 Reactor . | . . . . . . . . . . . . . . . . . Propulsion 36 | 2 2 2 4 . 2 . 3 . 4 1 1 3 1 3 4 4 Treads 12 | 2 2 2 4 . 2 . . . . . . . . . . . Leg . | . . . . . . . . . . . . . . . . . Wheel . | . . . . . . . . . . . . . . . . . Hover 4 | . . . . . . . . . . . . . . . 4 . Flight 20 | . . . . . . . 3 . 4 1 1 3 1 3 . 4 Utility 45 | 2 5 1 6 . 2 1 5 . 1 2 5 9 . 4 2 . Device 10 | 1 1 1 3 . 1 . . . . . 2 . . . 1 . Storage 7 | 1 3 . 2 . . . . . . . . . . . 1 . Processor 3 | . . . . . . . . . . . 3 . . . . . Hackware 20 | . . . . . . . 4 . 1 2 . 9 . 4 . . Protection 5 | . 1 . 1 . 1 1 1 . . . . . . . . . Artifact . | . . . . . . . . . . . . . . . . . Weapon 20 | 3 1 2 2 3 2 . . 1 1 . 2 1 . . 2 . Energy Gun 3 | 1 . 1 . . . . . 1 . . . . . . . . Energy Cannon 3 | . 1 . 1 . 1 . . . . . . . . . . . Ballistic Gun 6 | 2 . . 1 2 . . . . 1 . . . . . . . Ballistic Cannon . | . . . . . . . . . . . . . . . . . Launcher 3 | . . 1 . 1 . . . . . . . 1 . . . . Special Weapon 4 | . . . . . 1 . . . . . 1 . . . 2 . Impact Weapon . | . . . . . . . . . . . . . . . . . Slashing Weapon 1 | . . . . . . . . . . . 1 . . . . . Piercing Weapon . | . . . . . . . . . . . . . . . . . Special Melee Weapon . | . . . . . . . . . . . . . . . . . Unidentified Prototypes 2 | . . . 2 . . . . . . . . . . . . . Parts Lost 51 | . 1 5 3 3 7 . . 1 1 4 1 4 . 6 1 14 Power 8 | . . 1 1 2 1 . . 1 . . . 1 . . . 1 Propulsion 20 | . . 2 . . 3 . . . 1 . . 3 . 5 1 5 Utility 12 | . 1 . 1 . 1 . . . . 3 . . . . . 6 Weapon 11 | . . 2 1 1 2 . . . . 1 1 . . 1 . 2 Highest Loss Streak 13 | . 1 2 1 1 5 . . 1 1 2 1 3 . 1 1 13 To Critical Strikes 1 | . . . . . 1 . . . . . . . . . . . Average Backups 11 | 1 8 12 14 17 18 19 9 4 4 3 2 4 5 3 4 4 Power 1 | . 1 2 1 1 . . . . . . 1 . 1 1 1 1 Propulsion 3 | . 1 2 2 5 5 6 2 . 2 2 1 1 2 . 1 1 Utility 4 | . 2 4 4 6 8 9 4 2 . . . . 1 . . . Weapon 2 | . 2 2 5 4 3 2 2 2 1 . . 1 1 1 1 1 Tool/Special . | . . . . . . . . . . . . . . . . . Unused Backups 26 | . . 1 1 . 7 1 7 . . . . . 1 1 4 3 Power 4 | . . . . . 1 . . . . . . . 1 . 1 1 Propulsion 10 | . . 1 1 . . . 4 . . . . . . 1 3 . Utility 9 | . . . . . 6 1 2 . . . . . . . . . Weapon 2 | . . . . . . . 1 . . . . . . . . 1 Tool/Special 1 | . . . . . . . . . . . . . . . . 1 Average Slot Usage (%) 94 | . 99 99 96 99 98 100 67 61 71 82 94 97 97 85 87 78 Engine 6 | . 14 13 7 1 10 11 7 3 2 4 . . . . . . Core 3 | . . . 3 9 . . . . . 2 6 5 5 6 5 5 Treads 20 | . 28 28 32 32 33 33 7 . . . . . . . . . Hover 1 | . . . . . . . . . . . . . . . 10 6 Flight 7 | . . . . . . . 15 23 22 23 25 25 25 23 12 14 Device 7 | . 6 5 7 11 10 11 3 . . . 5 5 . . 5 5 Storage 7 | . 14 14 11 11 11 11 3 . . . . . . . . 1 Processor 2 | . . . . . . . . . . . 11 6 6 6 6 5 Hackware 12 | . . . . . . . 18 30 34 38 33 38 45 37 33 25 Protection 6 | . 7 8 11 11 11 11 3 3 7 3 . . . . . . Energy Cannon 6 | . 10 12 10 11 10 11 3 . . . . . . . . . Ballistic Gun 7 | . 14 9 11 10 9 11 3 . 3 5 . . . . . . Special Weapon 1 | . . . . . . . . . . . . 6 5 4 3 3 Slashing Weapon 1 | . . . . . . . . . . . 5 6 6 6 6 5 Peak Build Rating 56 | 7 12 14 28 28 32 28 32 21 26 29 45 54 51 51 56 56 Average Rating 29 | 4 9 12 24 27 29 28 23 19 22 24 40 51 49 42 48 40 On Entrance 27 | . 7 12 12 28 27 28 28 21 17 25 23 45 51 47 36 56 Avg Prop Armor Cover (%) 5 | . . . . . . . . . . . . . . . 5 . Naked Turns . | . . . . . . . . . . . . . . . . . Heaviest Build 67 | 14 35 35 60 62 67 67 67 9 11 12 13 14 12 12 24 24 Greatest Support 66 | 40 46 46 66 60 63 63 63 12 12 12 20 20 20 21 36 36 Greatest Overweight (x) 1 | . . . . 1 1 1 1 . . . . . . . . . Average Overweight (x) . | . . . . . . 1 . . . . . . . . . . Largest Inventory Capacity 20 | 8 15 15 20 20 20 20 20 5 5 5 5 5 5 5 10 10 Average Capacity 13 | 7 10 15 16 20 20 20 9 5 5 5 5 5 5 5 5 6 Most Carried 20 | 3 13 14 17 18 20 20 20 5 5 5 4 5 5 5 5 6 Average Carried 11 | 1 8 12 14 17 18 19 8 4 4 3 3 4 5 3 4 4 Final Capacity 20 | 8 15 15 20 20 20 20 5 5 5 5 5 5 5 5 10 5 Final Carried 20 | 2 13 10 17 17 19 20 5 4 3 4 4 5 5 4 5 4 Class Distribution -------------------- 65% | Mutant 8% | Sprinter 8% | Botlord-Sprinter 6% | Bothacker-Sprinter 5% | Bothacker-Mutant 4% | Scavenger-Sprinter Dominant Class ---------------- Mutant | -10/Materials Mutant | -10/Mines Mutant | -9/Materials Mutant | -9/Storage Mutant | -9/Garrison Mutant | -9/Recycling Sprinter | -7/Factory Sprinter | -7/Garrison Sprinter | -7/Factory Sprinter | -7/Garrison Sprinter | -6/Factory Bothacker-Sprinter | -6/Garrison Botlord-Sprinter | -6/Factory Botlord-Sprinter | -6/Garrison Bothacker-Mutant | -6/Factory Bothacker-Sprinter | -6/Garrison Resources | -11 -10 -10 -9 -9 -9 -9 -7 -7 -7 -7 -6 -6 -6 -6 -6 -6 ----------- Run | Yrd Mat Min Mat Sto Gar Rec Fac Gar Fac Gar Fac Gar Fac Gar Fac Gar Matter Collected 3146 | 277 252 170 396 154 637 45 . . 84 159 83 402 . 311 75 101 Remotely . | . . . . . . . . . . . . . . . . . Salvage Created 4380 | 13 603 187 869 888 762 108 . . 81 219 113 214 . 176 98 49 Parts 267 | 3 31 7 51 56 52 7 . . 6 19 2 16 . 11 4 2 Haulers Intercepted 7 | . 2 . 1 3 . . . . . . 1 . . . . . Recyclers Shooed 1 | . . . . . . 1 . . . . . . . . . . Parts Field Recycled . | . . . . . . . . . . . . . . . . . Retrieved Matter . | . . . . . . . . . . . . . . . . . Parts Self-Destructed . | . . . . . . . . . . . . . . . . . Prevented . | . . . . . . . . . . . . . . . . . Parts Restored . | . . . . . . . . . . . . . . . . . Kills | -11 -10 -10 -9 -9 -9 -9 -7 -7 -7 -7 -6 -6 -6 -6 -6 -6 ------- Run | Yrd Mat Min Mat Sto Gar Rec Fac Gar Fac Gar Fac Gar Fac Gar Fac Gar Combat Hostiles Destroyed 108 | . 11 13 19 21 23 2 . . 1 6 . 5 . 4 2 1 Melee 12 | . . . . . . . . . . . . 5 . 4 2 1 Guns 28 | . 5 4 6 3 6 . . . 1 3 . . . . . . Cannons 44 | . 6 5 11 10 10 2 . . . . . . . . . . AOE 24 | . . 4 2 8 7 . . . . 3 . . . . . . Classes Destroyed 13 | 1 5 1 1 2 . . . . 1 . . 1 . . 1 . Worker 7 | . 2 . 1 1 . . . . 3 . . . . . . . Builder 1 | . . . . 1 . . . . . . . . . . . . Tunneler 1 | 1 . . . . . . . . . . . . . . . . Hauler 7 | . 2 . 1 3 . . . . . . 1 . . . . . Operator 2 | . . . . 2 . . . . . . . . . . . . Watcher 5 | . 2 . 1 1 . . . . . . 1 . . . . . Swarmer 28 | . 3 1 4 2 7 . . . . 3 . 5 . 1 . 2 Grunt 42 | . 8 2 9 12 10 . . . . . . . . 1 . . Sentry 21 | . . . 6 7 6 2 . . . . . . . . . . Hunter 1 | . . . . . . . . . . . . . . . 1 . Programmer 7 | . . . . . . . . . 1 3 . . . 2 1 . Behemoth 1 | . . . . . . . . . . . . 1 . . . . Assembled 10 | . . 10 . . . . . . . . . . . . . . Best Kill Streak 16 | 1 5 5 5 16 5 2 . . 3 3 1 2 . 2 1 1 Combat Bots Only 11 | . 4 5 5 11 5 2 . . 1 3 . 2 . 2 1 1 Max Kills in Single Turn 3 | 1 1 2 2 2 2 1 . . 1 3 1 1 . 1 1 1 Gunslinging . | . . . . . . . . . . . . . . . . . Exploded 3 | . . 2 1 2 2 . . . . 3 . . . . . . Melee 1 | . . . . . . . . . . . . 1 . 1 1 1 Uniques/NPCs Destroyed . | . . . . . . . . . . . . . . . . . Combat | -11 -10 -10 -9 -9 -9 -9 -7 -7 -7 -7 -6 -6 -6 -6 -6 -6 -------- Run | Yrd Mat Min Mat Sto Gar Rec Fac Gar Fac Gar Fac Gar Fac Gar Fac Gar Hostile Shots Fired 753 | . 43 48 77 116 131 2 . 11 14 41 15 47 . 53 26 129 Missed 289 | . 9 13 22 38 39 . . 6 6 21 5 28 . 27 18 57 Hits 464 | . 34 35 55 78 92 2 . 5 8 20 10 19 . 26 8 72 Melee 3 | . . 2 . . . . . . . . . . . . . 1 Projectile 461 | . 34 33 55 78 92 2 . 5 8 20 10 19 . 26 8 71 AOE 12 | . . 12 . . . . . . . . . . . . . . Critical Strikes 24 | . . . 2 6 6 . . . 1 3 . . . 2 . 4 Part Disruptions 2 | . . 2 . . . . . . . . . . . . . . Damage Taken 6800 | . 385 820 694 1049 1160 31 . 86 116 473 98 306 . 445 209 928 Core 1362 | . 75 69 67 93 56 . . . 43 98 26 123 . 110 46 556 Absorbed by Shields 249 | . . . . . . . . . . 34 . . . 35 . 180 Regen/Repaired (Parts) 404 | . . . . 311 . . . . . . 22 . 48 . 23 . Core Remaining (%) 66 | 100 . 42 . . . 46 . . . 79 . . . . . . Volleys Fired 373 | 1 45 39 67 58 63 4 . 4 14 16 . 25 3 26 6 2 Largest 2 | 2 2 2 2 2 2 1 . 1 1 1 . 1 1 1 1 1 Hottest 125 | 60 80 125 85 85 85 60 . 63 25 30 . 5 5 5 5 5 Shots Fired 592 | 2 88 69 118 100 115 4 . 4 14 16 . 25 3 26 6 2 Gun 270 | 2 61 35 51 42 51 . . 4 14 10 . . . . . . Cannon 227 | . 27 31 62 46 57 4 . . . . . . . . . . Launcher 33 | . . 3 5 12 7 . . . . 6 . . . . . . Special 62 | . . . . . . . . . . . . 25 3 26 6 2 Kinetic 226 | 1 45 12 51 42 51 . . . 14 10 . . . . . . Thermal 271 | 1 43 54 62 46 57 4 . 4 . . . . . . . . Explosive 33 | . . 3 5 12 7 . . . . 6 . . . . . . Electromagnetic . | . . . . . . . . . . . . . . . . . Robot Hit Streak 18 | 1 7 11 15 12 18 5 . 5 3 11 . 13 5 7 7 9 Robot Miss Streak 4 | . 3 3 3 3 4 1 . . 3 3 . 2 . 2 . . Penetration Max . | . . . . . . . . . . . . . . . . . Secondary Targets . | . . . . . . . . . . . . . . . . . Shots Hit Robots 404 | 1 52 42 64 64 69 3 . 4 11 8 3 30 3 33 13 4 Core Hits 187 | 1 25 26 28 38 30 3 . 1 6 14 2 7 . 3 1 2 Critical Kills 1 | . . . . . . . . . 1 . . . . . . . Critical Parts Destroyed . | . . . . . . . . . . . . . . . . . Critical Strikes 8 | . . 2 . . . . . . 1 . . 1 . 4 . . Burn 2 | . . 2 . . . . . . . . . . . . . . Destroy 1 | . . . . . . . . . 1 . . . . . . . Sever 5 | . . . . . . . . . . . . 1 . 4 . . Melee Attacks 107 | . . . . . . . . . . . 15 29 10 33 16 4 Impact . | . . . . . . . . . . . . . . . . . Slashing 107 | . . . . . . . . . . . 15 29 10 33 16 4 Piercing . | . . . . . . . . . . . . . . . . . Sneak Attacks 9 | . . . . . . . . . . . 1 6 . 1 . 1 Combat Hostiles 1 | . . . . . . . . . . . . 1 . . . . Follow-up Attacks . | . . . . . . . . . . . . . . . . . Damage Inflicted 10184 | 11 750 961 1634 2292 1875 87 . 67 188 480 154 685 . 614 286 100 Guns 2719 | 11 363 342 558 427 590 . . 67 188 173 . . . . . . Cannons 3386 | . 386 374 835 774 942 75 . . . . . . . . . . Explosions 2205 | . . 245 227 1083 343 . . . . 307 . . . . . . Melee 1838 | . . . . . . . . . . . 154 685 . 614 286 99 Ramming 36 | . 1 . 14 8 . 12 . . . . . . . . . 1 Kinetic 2273 | . 234 103 558 427 590 . . . 188 173 . . . . . . Thermal 3832 | 11 515 613 835 774 942 75 . 67 . . . . . . . . Explosive 2205 | . . 245 227 1083 343 . . . . 307 . . . . . . Electromagnetic . | . . . . . . . . . . . . . . . . . Impact . | . . . . . . . . . . . . . . . . . Slashing 1838 | . . . . . . . . . . . 154 685 . 614 286 99 Piercing . | . . . . . . . . . . . . . . . . . Highest Corruption 12 | . 2 2 . 2 2 2 . . 1 2 . . . . . 12 Average Corruption 1 | . 2 2 . 1 2 2 . . 1 1 . . . . . 3 Corruption Purged . | . . . . . . . . . . . . . . . . . Corruption Blocked . | . . . . . . . . . . . . . . . . . Effects 54 | . 3 7 . 7 18 15 . . . 2 . . . . . 2 Message Errors 8 | . 1 . . 1 3 2 . . . 1 . . . . . . Matter Fused 17 | . 1 3 . 1 5 6 . . . . . . . . . 1 Heat Flow Errors 8 | . . 1 . 3 2 2 . . . . . . . . . . Energy Discharges 3 | . . . . 1 2 . . . . . . . . . . . Data Loss (minor) 10 | . 1 1 . 1 2 4 . . . 1 . . . . . . Data Loss (major) 2 | . . . . . 1 1 . . . . . . . . . . Misfires 3 | . . 1 . . 2 . . . . . . . . . . . Misdirections 1 | . . . . . . . . . . . . . . . . 1 Weapon Failures 2 | . . 1 . . 1 . . . . . . . . . . . Overload Shots . | . . . . . . . . . . . . . . . . . Overflow Damage 215 | . 16 . 2 24 34 . . . . 22 . . . 25 92 . Projectiles 52 | . 16 . 2 . 34 . . . . . . . . . . . Explosions 46 | . . . . 24 . . . . . 22 . . . . . . Melee 117 | . . . . . . . . . . . . . . 25 92 . Knockbacks 1 | . . . . . . 1 . . . . . . . . . . Impact 1 | . . . . . . 1 . . . . . . . . . . Kinetic . | . . . . . . . . . . . . . . . . . Secondary . | . . . . . . . . . . . . . . . . . Self-Inflicted Damage 219 | . . 40 . 34 25 . . . . 120 . . . . . . Shots 6 | . . 1 . 1 1 . . . . 3 . . . . . . Rammed 8 | . 1 . 3 1 . 2 . . . . . . . . . 1 Targets Rammed 8 | . 1 . 3 1 . 2 . . . . . . . . . 1 Kicked . | . . . . . . . . . . . . . . . . . Crushed . | . . . . . . . . . . . . . . . . . Highest Temperature 253 | . 168 200 184 206 253 250 . 40 . 22 2 . . 13 . . Average Temperature 56 | . 40 91 47 51 40 113 . 21 . 13 2 . . 10 . . Received Heat Transfer 1959 | . 141 213 219 540 486 9 . 9 . 108 12 24 . 177 21 . Siege Activations . | . . . . . . . . . . . . . . . . . Martial Activations . | . . . . . . . . . . . . . . . . . Shielding Activations . | . . . . . . . . . . . . . . . . . Robots Disrupted . | . . . . . . . . . . . . . . . . . Combat Hostiles . | . . . . . . . . . . . . . . . . . Robots Corrupted . | . . . . . . . . . . . . . . . . . Combat Hostiles . | . . . . . . . . . . . . . . . . . Parts Fried . | . . . . . . . . . . . . . . . . . Impact Corruptions . | . . . . . . . . . . . . . . . . . Robots Melted . | . . . . . . . . . . . . . . . . . Combat Hostiles . | . . . . . . . . . . . . . . . . . Parts Melted 9 | . . . 1 3 4 . . . . . . . . . 1 . Heat Transferred 6778 | 25 1114 1480 1295 1221 1384 111 . 148 . . . . . . . . Parts Sabotaged . | . . . . . . . . . . . . . . . . . Parts Stolen . | . . . . . . . . . . . . . . . . . Parts Stripped . | . . . . . . . . . . . . . . . . . Power Chain Reactions . | . . . . . . . . . . . . . . . . . Alert | -11 -10 -10 -9 -9 -9 -9 -7 -7 -7 -7 -6 -6 -6 -6 -6 -6 ------- Run | Yrd Mat Min Mat Sto Gar Rec Fac Gar Fac Gar Fac Gar Fac Gar Fac Gar Maximum Alert Level 3 | . . . 1 2 3 2 . . . 2 1 2 1 2 1 . Low Security (%) 53 | 100 100 100 78 85 . 38 100 100 100 65 45 5 . 11 70 100 Level 1 25 | . . . 21 6 15 50 . . . 27 54 49 100 50 29 . Level 2 11 | . . . . 8 27 10 . . . 7 . 44 . 38 . . Level 3 9 | . . . . . 57 . . . . . . . . . . . Level 4 . | . . . . . . . . . . . . . . . . . Level 5 . | . . . . . . . . . . . . . . . . . High Security . | . . . . . . . . . . . . . . . . . Max Security . | . . . . . . . . . . . . . . . . . Peak Influence 1004 | 5 173 81 225 418 1004 451 . 20 20 474 248 684 363 581 303 46 Initial 451 | . 3 26 2 83 256 451 . . 10 14 248 118 359 185 303 11 Average 245 | . 73 22 105 99 678 241 . 7 5 148 206 382 305 370 108 24 Influence Increases 5230 | 5 461 210 568 733 858 66 . 30 45 500 121 726 56 653 136 62 Destroy 0b10 Robot/C 2540 | . 220 140 380 420 520 40 . . 20 120 . 240 . 360 40 40 Destroy 0b10 Robot/NC 120 | 5 30 . 15 40 . . . . 15 5 10 . . . . . Destroy Leader 454 | . 58 30 114 128 20 . . . 10 10 4 30 . 40 10 . Allied During Kill 141 | . . 17 . . 11 . . . . . . 18 . 93 1 1 Trap Triggered on 0b10 10 | . . . . . . . . . . 10 . . . . . . Successful Hack 218 | . 47 . 5 5 . 25 . . . 14 23 . 48 . 35 16 Disable Machine 180 | . 15 . 30 60 15 . . . . 15 15 . . . 30 . Anti-Garrison Action 500 | . . . . . 200 . . . . 50 . 200 . 50 . . Destroy Structure 272 | . 1 23 24 65 32 1 . . . 36 9 28 8 35 5 5 Partial Spotted 45 | . . . . . . . . 15 . . 30 . . . . . Lose Combat Pursuer 750 | . 90 . . 15 60 . . 15 . 240 30 210 . 75 15 . Influence Decreases 5230 | . 397 272 377 537 248 1070 . 10 45 46 426 211 475 340 698 78 Entered New Map 1834 | . 2 43 5 115 138 553 . . 10 6 226 51 325 80 275 5 Time Decay 2300 | . 385 169 342 392 . 431 . . 35 . 180 . 150 . 216 . Lost Part 406 | . 10 40 30 30 70 . . 10 . 40 10 40 . 60 10 56 Lost Ally 454 | . . 20 . . 40 . . . . . 10 120 . 200 47 17 Purge Threat 236 | . . . . . . 86 . . . . . . . . 150 . Squads Dispatched 18 | . 3 . 2 3 . . . . . . 3 . 3 . 4 . Investigation 5 | . . . 2 . . . . . . . . . 2 . 1 . Extermination 4 | . . . . . . . . . . . 1 . 1 . 2 . Reinforcement 8 | . 3 . . 2 . . . . . . 2 . . . 1 . Assault . | . . . . . . . . . . . . . . . . . Garrison 1 | . . . . 1 . . . . . . . . . . . . Intercept . | . . . . . . . . . . . . . . . . . Searches Triggered . | . . . . . . . . . . . . . . . . . Construction Impeded 1 | . . . . 1 . . . . . . . . . . . . Haulers Reinforced 1 | . . . . . . . . . . . 1 . . . . . Active Scanning Responses . | . . . . . . . . . . . . . . . . . Cargo Convoy Interrupts . | . . . . . . . . . . . . . . . . . Stealth | -11 -10 -10 -9 -9 -9 -9 -7 -7 -7 -7 -6 -6 -6 -6 -6 -6 --------- Run | Yrd Mat Min Mat Sto Gar Rec Fac Gar Fac Gar Fac Gar Fac Gar Fac Gar Distress Signals 7 | . 1 . 3 3 . . . . . . . . . . . . Communications Jammed 7 | . . . . . . . . . . . . . . . 7 . Distress Signals 7 | . . . . . . . . . . . . . . . 7 . Times Spotted 247 | . 21 27 23 26 27 2 . 6 1 21 6 27 3 28 16 13 Peak Tracking Total 12 | . 4 6 5 6 5 2 . 6 1 12 2 6 2 5 5 11 Tactical Retreats 33 | . 4 4 . 1 4 . . 1 . 3 2 9 . 4 1 . Traps | -11 -10 -10 -9 -9 -9 -9 -7 -7 -7 -7 -6 -6 -6 -6 -6 -6 ------- Run | Yrd Mat Min Mat Sto Gar Rec Fac Gar Fac Gar Fac Gar Fac Gar Fac Gar Traps Triggered 39 | . 4 . 2 2 7 . . 2 . 8 . 2 1 4 1 6 Indirectly . | . . . . . . . . . . . . . . . . . Trap Hack Attempts . | . . . . . . . . . . . . . . . . . Triggered . | . . . . . . . . . . . . . . . . . Disarmed . | . . . . . . . . . . . . . . . . . Reprogrammed . | . . . . . . . . . . . . . . . . . Reused 1 | . . . . . . . . . . 1 . . . . . . Traps Extracted . | . . . . . . . . . . . . . . . . . Installed 1 | . . . . . . . . . . 1 . . . . . . Triggered 1 | . . . . . . . . . . 1 . . . . . . Most Traps Carried 2 | . . . . . . . . . . 2 1 1 . . . . Machines | -11 -10 -10 -9 -9 -9 -9 -7 -7 -7 -7 -6 -6 -6 -6 -6 -6 ---------- Run | Yrd Mat Min Mat Sto Gar Rec Fac Gar Fac Gar Fac Gar Fac Gar Fac Gar Machines Disabled 19 | . 1 . 2 4 3 . . . . 2 1 3 . 1 2 . Max in Single Turn 1 | . 1 . 1 1 1 . . . . 1 1 1 . 1 . . Garrison Relay 7 | . . . . . 2 . . . . 1 . 3 . 1 . . Machines Repaired . | . . . . . . . . . . . . . . . . . Machines Dismantled . | . . . . . . . . . . . . . . . . . Machines Sabotaged . | . . . . . . . . . . . . . . . . . Overloaded Fab Kills . | . . . . . . . . . . . . . . . . . Hacking | -11 -10 -10 -9 -9 -9 -9 -7 -7 -7 -7 -6 -6 -6 -6 -6 -6 --------- Run | Yrd Mat Min Mat Sto Gar Rec Fac Gar Fac Gar Fac Gar Fac Gar Fac Gar Machines Accessed 62 | . 6 . 5 7 1 9 1 1 1 1 7 3 6 1 12 1 Terminals 38 | . 5 . 3 5 1 6 . 1 . 1 2 3 1 1 8 1 Fabricators 4 | . . . . . . . . . . . 1 . 1 . 2 . Repair Stations 7 | . 1 . . 1 . . . . . . 2 . 2 . 1 . Recycling Units 3 | . . . . . . 3 . . . . . . . . . . Scanalyzers 4 | . . . 2 . . . . . . . 1 . 1 . . . Garrison Access 6 | . . . . 1 . . 1 . 1 . 1 . 1 . 1 . Total Hacks 143 | . 15 . 12 19 1 28 2 1 1 2 14 6 15 2 23 2 Successful 68 | . 8 . 4 7 . 12 2 . 1 1 8 1 10 . 13 1 Failed 75 | . 7 . 8 12 1 16 . 1 . 1 6 5 5 2 10 1 Catastrophic 7 | . 1 . . 1 . 1 . . . . . 1 . . 3 . Database Lockouts . | . . . . . . . . . . . . . . . . . Manual 67 | . 12 . 5 8 . 19 . . . . 6 . 4 . 13 . Terminals 88 | . 13 . 7 12 1 21 . 1 . 2 4 6 1 2 16 2 Fabricators 6 | . . . . . . . . . . . 2 . 1 . 3 . Repair Stations 19 | . 2 . . 6 . . . . . . 3 . 6 . 2 . Recycling Units 7 | . . . . . . 7 . . . . . . . . . . Scanalyzers 10 | . . . 5 . . . . . . . 2 . 3 . . . Garrison Access 13 | . . . . 1 . . 2 . 1 . 3 . 4 . 2 . Terminal Hacks 17 | . 4 . . . . 7 . . . 1 . 1 . . 3 1 Part Schematic 1 | . . . . . . . . . . . . . . . 1 . Robot Analysis 5 | . 2 . . . . 3 . . . . . . . . . . Prototype ID Bank 2 | . . . . . . 1 . . . . . . . . 1 . Level Access Points 1 | . 1 . . . . . . . . . . . . . . . Branch Access Points 1 | . 1 . . . . . . . . . . . . . . . Emergency Access Points 1 | . . . . . . . . . . 1 . . . . . . Machine Index 1 | . . . . . . 1 . . . . . . . . . . Terminal Index 1 | . . . . . . 1 . . . . . . . . . . Unreport Threat 2 | . . . . . . 1 . . . . . . . . 1 . Security Stations 2 | . . . . . . . . . . . . 1 . . . 1 Fabricator Hacks 4 | . . . . . . . . . . . . . 1 . 3 . Network Status 2 | . . . . . . . . . . . . . 1 . 1 . Load Schematic 1 | . . . . . . . . . . . . . . . 1 . Build 1 | . . . . . . . . . . . . . . . 1 . Repair Station Hacks 13 | . 1 . . 4 . . . . . . 2 . 4 . 2 . Scan Component 7 | . 1 . . 2 . . . . . . 1 . 2 . 1 . Repair 6 | . . . . 2 . . . . . . 1 . 2 . 1 . Recycling Unit Hacks . | . . . . . . . . . . . . . . . . . Scanalyzer 7 | . . . 3 . . . . . . . 2 . 2 . . . Insert Component 2 | . . . 1 . . . . . . . 1 . . . . . Analyze 1 | . . . 1 . . . . . . . . . . . . . Retrieve Study 4 | . . . 1 . . . . . . . 1 . 2 . . . Garrison Access Hacks 7 | . . . . 1 . . 2 . 1 . 1 . 1 . 1 . Unlock Access 6 | . . . . 1 . . 1 . 1 . 1 . 1 . 1 . Coupler Status 1 | . . . . . . . 1 . . . . . . . . . Unauthorized Hacks 20 | . 3 . 1 2 . 5 . . . . 3 . 2 . 4 . Terminals 15 | . 3 . 1 2 . 2 . . . . 2 . 1 . 4 . Assimilate 3 | . . . . . . . . . . . 1 . . . 2 . Botnet 12 | . 3 . 1 2 . 2 . . . . 1 . 1 . 2 . Fabricators . | . . . . . . . . . . . . . . . . . Repair Stations . | . . . . . . . . . . . . . . . . . Recycling Units 3 | . . . . . . 3 . . . . . . . . . . Reject 1 | . . . . . . 1 . . . . . . . . . . Mask 2 | . . . . . . 2 . . . . . . . . . . Scanalyzers . | . . . . . . . . . . . . . . . . . Garrison Access 2 | . . . . . . . . . . . 1 . 1 . . . Reprogram 2 | . . . . . . . . . . . 1 . 1 . . . Data Cores Recovered 1 | . . . . 1 . . . . . . . . . . . . Used . | . . . . . . . . . . . . . . . . . Hacking Detections 49 | . 6 . 5 6 1 7 1 1 1 1 4 3 2 1 10 . Full Trace Events 3 | . . . . . . . . . . . . 1 1 . 1 . Feedback Events . | . . . . . . . . . . . . . . . . . Feedback Blocked . | . . . . . . . . . . . . . . . . . Robot Schematics Acquired . | . . . . . . . . . . . . . . . . . Robots Built . | . . . . . . . . . . . . . . . . . Authchips . | . . . . . . . . . . . . . . . . . Time . | . . . . . . . . . . . . . . . . . Total Robot Build Rating . | . . . . . . . . . . . . . . . . . Part Schematics Acquired 2 | . . . 1 . . . . . . . . . . . 1 . Parts Built 2 | . . . . . . . . . . . . . . . 2 . Authchips . | . . . . . . . . . . . . . . . . . Time 84 | . . . . . . . . . . . . . . . 84 . Total Part Build Rating 8 | . . . . . . . . . . . . . . . 8 . Part Studies Acquired 3 | . . . . . . . . . . . 1 . 2 . . . Parts Repaired 6 | . . . . 2 . . . . . . 1 . 2 . 1 . Time 216 | . . . . 76 . . . . . . 32 . 76 . 32 . Parts Recycled . | . . . . . . . . . . . . . . . . . Recycled Matter . | . . . . . . . . . . . . . . . . . Retrieved Matter . | . . . . . . . . . . . . . . . . . Retrieved Components . | . . . . . . . . . . . . . . . . . Parts Scanalyzed 1 | . . . 1 . . . . . . . . . . . . . Part Schematics Acquired 1 | . . . 1 . . . . . . . . . . . . . Parts Damaged . | . . . . . . . . . . . . . . . . . Bothacking | -11 -10 -10 -9 -9 -9 -9 -7 -7 -7 -7 -6 -6 -6 -6 -6 -6 ------------ Run | Yrd Mat Min Mat Sto Gar Rec Fac Gar Fac Gar Fac Gar Fac Gar Fac Gar Used RIF Installer 6 | . . . . . 2 . . 1 . 1 . 1 . 1 . . Code Merge 1 | . . . . . . . . . . . . . . 1 . . Command Fork 1 | . . . . . . . . . . . . 1 . . . . Signal Jammer 1 | . . . . . . . . . . 1 . . . . . . Zone Cloak 1 | . . . . . . . . 1 . . . . . . . . Robot Detection 1 | . . . . . 1 . . . . . . . . . . . Robots Hacked 26 | . . . . . . . . . . . . 10 2 9 3 2 Non-combat 1 | . . . . . . . . . . . . . 1 . . . Combat 25 | . . . . . . . . . . . . 10 1 9 3 2 Robot Hacks Applied 28 | . . . . . . . . . . . . 11 2 9 4 2 drop_inventory 1 | . . . . . . . . . . . . . 1 . . . emergency_deploy 1 | . . . . . . . . . . . . 1 . . . . find_garrison 1 | . . . . . . . . . . . . . . . 1 . disrupt_area 2 | . . . . . . . . . . . . 2 . . . . amplify_resonance 3 | . . . . . . . . . . . . 1 . 2 . . disable_weapons 1 | . . . . . . . . . . . . 1 . . . . overwrite_iff 6 | . . . . . . . . . . . . 1 . 2 1 2 streamctrl_high 1 | . . . . . . . . . . . . 1 . . . . formatsys_high 12 | . . . . . . . . . . . . 4 1 5 2 . Relay Couplers Released 28 | . . . . . 10 . . . . 4 . 11 . 3 . . Machine Destruction 28 | . . . . . 10 . . . . 4 . 11 . 3 . . Attached 20 | . . . . . . . 4 . 1 2 . 9 . 4 . . Fabnet Peak Effective % . | . . . . . . . . . . . . . . . . . Robots Rewired 6 | . . . . . 2 . . . . . . 1 . 3 . . Allies Hacked . | . . . . . . . . . . . . . . . . . Hacks Repelled . | . . . . . . . . . . . . . . . . . Allies | -11 -10 -10 -9 -9 -9 -9 -7 -7 -7 -7 -6 -6 -6 -6 -6 -6 -------- Run | Yrd Mat Min Mat Sto Gar Rec Fac Gar Fac Gar Fac Gar Fac Gar Fac Gar Total Allies 33 | . . 2 . . 2 . . . . . 1 7 4 10 5 2 Largest Group 6 | . . 2 . . 2 . . . . . 1 3 4 6 3 1 Highest-Rated Group 180 | . . 45 . . 62 . . . . . 10 149 119 180 90 12 Highest-Rated Ally 116 | . . 31 . . 31 . . . . . 10 116 32 32 47 12 Total Orders . | . . . . . . . . . . . . . . . . . Ally Attacks 203 | . . 40 . . 10 . . . . . . 34 . 99 12 8 Total Damage 3581 | . . 487 . . 167 . . . . . . 879 . 1681 313 54 Kills 33 | . . 7 . . 3 . . . . . . 7 . 14 1 1 Allies Corrupted . | . . . . . . . . . . . . . . . . . Allies Melted . | . . . . . . . . . . . . . . . . . Intel | -11 -10 -10 -9 -9 -9 -9 -7 -7 -7 -7 -6 -6 -6 -6 -6 -6 ------- Run | Yrd Mat Min Mat Sto Gar Rec Fac Gar Fac Gar Fac Gar Fac Gar Fac Gar Active Infowar (turns) 2887 | 4 266 . 1 . . . . . . . 361 445 315 577 756 162 Optics 2603 | . . . . . . . . . . . 348 445 315 577 756 162 Sensors 224 | . . . 1 . . . . . . . 223 . . . . . Seismic 270 | 4 266 . . . . . . . . . . . . . . . Robot Analysis Total 5 | . 2 . . . . 3 . . . . . . . . . . Derelict Logs Recovered 2 | . . 2 . . . . . . . . . . . . . . Drone Launches . | . . . . . . . . . . . . . . . . . Drone Recoveries . | . . . . . . . . . . . . . . . . . Exploration | -11 -10 -10 -9 -9 -9 -9 -7 -7 -7 -7 -6 -6 -6 -6 -6 -6 ------------- Run | Yrd Mat Min Mat Sto Gar Rec Fac Gar Fac Gar Fac Gar Fac Gar Fac Gar Turns Passed 9042 | 73 1025 510 775 922 1493 1109 79 75 113 240 366 445 315 577 756 169 Spaces Moved 7817 | 39 474 223 319 374 493 445 167 161 175 388 933 704 480 829 1349 264 Core 27 | 4 . . . . . . . . . . . . . . . 23 Treads 2368 | 35 474 223 319 374 493 445 5 . . . . . . . . . Legs . | . . . . . . . . . . . . . . . . . Wheels . | . . . . . . . . . . . . . . . . . Hover 714 | . . . . . . . . . . . . . . . 663 51 Flight 4708 | . . . . . . . 162 161 175 388 933 704 480 829 686 190 Fastest Speed 26 | 50 160 160 160 170 163 243 30 30 29 29 26 26 26 26 29 26 Average Speed 80 | 148 160 160 167 175 242 243 36 30 29 29 26 26 26 27 40 32 Slowest Speed 250 | 160 160 160 170 250 250 243 243 30 30 29 26 29 26 29 60 50 Overloaded Moves . | . . . . . . . . . . . . . . . . . Propulsion Burnouts . | . . . . . . . . . . . . . . . . . Robots Hopped 27 | . . . . . . . 1 . 1 2 3 12 4 . 3 1 Potential Cave-ins . | . . . . . . . . . . . . . . . . . Cave-ins Triggered . | . . . . . . . . . . . . . . . . . Exploration Rate (%) 44 | 3 85 67 42 68 62 83 4 36 5 53 30 67 17 58 34 37 Regions Visited 16 Branch Regions 3 Pre-discovered Areas 1 | . . 1 . . . . . . . . . . . . . . Known Exits Taken 9 | . 1 1 1 1 . . 1 . 1 . 1 . 1 . 1 . Unknown Exits Taken 2 | 1 . . . . . 1 . . . . . . . . . . Scrap Searched 2 | . . 2 . . . . . . . . . . . . . . Spaces Dug 33 | . . . 3 . . . . . . . 9 3 8 5 5 . Terrain Destroyed 194 | . . 25 38 60 13 1 . . . 27 9 3 8 5 5 . Melee 30 | . . . . . . . . . . . 9 3 8 5 5 . Projectile 9 | . . . 4 3 1 1 . . . . . . . . . . AOE 155 | . . 25 34 57 12 . . . . 27 . . . . . . Terrain Rammed . | . . . . . . . . . . . . . . . . . Walls Destroyed . | . . . . . . . . . . . . . . . . . Machines Disabled . | . . . . . . . . . . . . . . . . . Actions | -11 -10 -10 -9 -9 -9 -9 -7 -7 -7 -7 -6 -6 -6 -6 -6 -6 --------- Run | Yrd Mat Min Mat Sto Gar Rec Fac Gar Fac Gar Fac Gar Fac Gar Fac Gar Total 9815 | 49 653 306 449 544 694 467 192 183 223 496 1027 895 648 1116 1532 341 Wait 1005 | . 102 32 23 97 60 11 . 1 19 . 71 105 152 184 138 10 Move 7754 | 38 473 222 318 374 492 444 164 160 173 383 926 684 471 828 1342 262 Hop 22 | . . . . . . . 1 . 1 2 3 7 4 . 3 1 Pick Up 89 | 2 14 3 13 5 16 3 . . 4 2 1 10 1 5 7 3 Fast Attach 51 | 6 3 . 2 2 3 . 1 . 1 4 8 7 4 3 5 2 Attach 60 | 1 1 5 5 3 11 . 8 2 3 3 1 5 . 5 3 4 Detach 13 | . . . 1 . 4 . 1 1 . 3 . . . . 3 . Swap 42 | 1 7 4 9 2 4 1 . . 3 3 . 3 1 1 2 1 Drop 83 | . 7 1 8 2 11 2 17 . 5 3 2 7 2 2 7 7 Fire 373 | 1 45 39 67 58 63 4 . 4 14 16 . 25 3 26 6 2 Melee 107 | . . . . . . . . . . . 15 29 10 33 16 4 Ram 1 | . . . . . . . . . . . . . . . . 1 Kick . | . . . . . . . . . . . . . . . . . Crush 7 | . 1 . 3 1 . 2 . . . . . . . . . . Escape Stasis 185 | . . . . . 8 . . 15 . 76 . 13 . 29 . 44 Rewire 22 | . . . . . 22 . . . . . . . . . . . Trap 1 | . . . . . . . . . . 1 . . . . . . Miscellaneous . | . . . . . . . . . . . . . . . . . Route ------- -11/Scrapyard -10/Materials (discovered 4 exits: *Mat x3 / *Min) -10/Mines (discovered 2 exits: *Mat / [*Sub]) -9/Materials (discovered 2 exits: [*Min] / *Sto) -9/Storage (discovered 2 exits: [*Mat] / Gar) -9/Garrison (discovered 2 exits: *Rec x2) -9/Recycling -7/Factory -7/Garrison -7/Factory -7/Garrison (discovered 2 exits: *Fac x2) -6/Factory (discovered 3 exits: [*Fac] / [*Low] / Gar) -6/Garrison (discovered 2 exits: *Fac x2) -6/Factory -6/Garrison (discovered 3 exits: [*Fac x2] / *Fac) -6/Factory -6/Garrison (discovered 1 exit: [*Fac]) History --------- Turn | Location | Event 3 | -11/Scrapyard | Discovered new exit (range 15) 74 | -11/Scrapyard | Entered Materials 257 | -10/Materials | Identified exit to Materials 313 | -10/Materials | Build established: Mutant 984 | -10/Materials | Identified exit to Mines 1099 | -10/Materials | Entered Mines 1117 | -10/Mines | Met a Derelict bent on vengeance 1137 | -10/Mines | Discovered new exit (range 3) 1299 | -10/Mines | Found a damaged Exp. Sensor Array with a note attached 1302 | -10/Mines | Found Prototype Device 1335 | -10/Mines | Learned 4 Materials zone layouts 1336 | -10/Mines | Assembled infested the area 1341 | -10/Mines | Assisted by a Guerilla fighting off Assembled 1381 | -10/Mines | Core integrity fell below 50% 1459 | -10/Mines | Learned location of Zion (-6) 1582 | -10/Mines | Discovered exit to Materials (range 6) 1609 | -10/Mines | Entered Materials 1609 | -9/Materials | Evolved 2 slots: Propulsion x1, Utility x1 1609 | -9/Materials | Discovered new exit (range 7) 1610 | -9/Materials | Identified exit to Storage 1618 | -9/Materials | Identified Exp. Sensor Array 2384 | -9/Materials | Entered Storage 2741 | -9/Storage | Discovered new exit (range 16) 2859 | -9/Storage | Repaired Arm. Treads 2899 | -9/Storage | Repaired Arm. Treads 3172 | -9/Storage | Garrison activated, responded to threat 3251 | -9/Storage | Destroyed 11 combat bots 3306 | -9/Storage | Identified exit to Garrison 3306 | -9/Storage | Entered Garrison 3431 | -9/Garrison | Core integrity fell below 50% 3524 | -9/Garrison | Triggered checkpoint 3536 | -9/Garrison | Garrison Relay disabled 3614 | -9/Garrison | Triggered checkpoint 3753 | -9/Garrison | Triggered checkpoint 3791 | -9/Garrison | Triggered checkpoint 3870 | -9/Garrison | Discovered new exit (range 11) 4016 | -9/Garrison | Installed Relay Interface Framework 4074 | -9/Garrison | Triggered checkpoint 4372 | -9/Garrison | Discovered new exit (range 14) 4486 | -9/Garrison | Triggered checkpoint 4544 | -9/Garrison | Lost 5 parts (1p2n1u1w) 4645 | -9/Garrison | Expanded RIF knowledge: Robot Detection 4700 | -9/Garrison | Garrison Relay disabled 4799 | -9/Garrison | Entered Recycling 5883 | -9/Recycling | Discovered new exit (range 11) 5908 | -9/Recycling | Entered Factory 5908 | -7/Factory | Evolved 4 slots: Utility x4 5950 | -7/Factory | Identified exit to Garrison 5987 | -7/Factory | Entered Garrison 5995 | -7/Garrison | Triggered checkpoint 6015 | -7/Garrison | Expanded RIF knowledge: Zone Cloak 6025 | -7/Garrison | Triggered checkpoint 6051 | -7/Garrison | Spotted B-75 Beast 6060 | -7/Garrison | Discovered new exit (range 8) 6062 | -7/Garrison | Entered Factory 6175 | -7/Factory | Identified exit to Garrison 6175 | -7/Factory | Entered Garrison 6222 | -7/Garrison | Build established: Sprinter 6303 | -7/Garrison | Triggered checkpoint 6321 | -7/Garrison | Discovered new exit (range 12) 6331 | -7/Garrison | Triggered checkpoint 6340 | -7/Garrison | Garrison Relay disabled 6367 | -7/Garrison | Triggered checkpoint 6381 | -7/Garrison | Discovered new exit (range 10) 6384 | -7/Garrison | Expanded RIF knowledge: Signal Jamming 6415 | -7/Garrison | Entered Factory 6415 | -6/Factory | Evolved 2 slots: Propulsion x1, Utility x1 6451 | -6/Factory | Discovered new exit (range 14) 6581 | -6/Factory | Repaired VTOL Module+ 6669 | -6/Factory | Discovered new exit (range 4) 6688 | -6/Factory | Spotted B-75 Beast 6758 | -6/Factory | Identified exit to Garrison 6781 | -6/Factory | Entered Garrison 6785 | -6/Garrison | Garrison Relay disabled 6800 | -6/Garrison | Triggered checkpoint 6805 | -6/Garrison | Garrison Relay disabled 6844 | -6/Garrison | Spotted B-75 Beast 6860 | -6/Garrison | Hijacked Beast 5a control node with streamctrl_high 6871 | -6/Garrison | Triggered checkpoint 6884 | -6/Garrison | Triggered checkpoint 6931 | -6/Garrison | Lost 3 allies 6946 | -6/Garrison | Destroyed Beast 5a 6983 | -6/Garrison | Triggered checkpoint 6997 | -6/Garrison | Triggered checkpoint 7013 | -6/Garrison | Discovered new exit (range 13) 7066 | -6/Garrison | Expanded RIF knowledge: Command Fork 7141 | -6/Garrison | Garrison Relay disabled 7165 | -6/Garrison | Lost 3 parts (3n) 7166 | -6/Garrison | Learned Factory security intel 7174 | -6/Garrison | Discovered new exit (range 13) 7175 | -6/Garrison | Spotted B-75 Beast 7179 | -6/Garrison | Rewired B-86 Titan 7226 | -6/Garrison | Entered Factory 7274 | -6/Factory | Repaired Remote Datajack 7339 | -6/Factory | Repaired VTOL Module+ 7517 | -6/Factory | Identified exit to Garrison 7541 | -6/Factory | Entered Garrison 7541 | -6/Garrison | Accompanied by 4 allies 7547 | -6/Garrison | Triggered checkpoint 7575 | -6/Garrison | Build established: Botlord-Sprinter 7621 | -6/Garrison | Triggered checkpoint 7641 | -6/Garrison | Garrison Relay disabled 7696 | -6/Garrison | Triggered checkpoint 7697 | -6/Garrison | Triggered checkpoint 7732 | -6/Garrison | Lost 6 allies 7763 | -6/Garrison | Triggered checkpoint 7806 | -6/Garrison | Discovered new exit (range 13) 7809 | -6/Garrison | Triggered checkpoint 7831 | -6/Garrison | Discovered new exit (range 5) 7905 | -6/Garrison | Expanded RIF knowledge: Code Merge 7929 | -6/Garrison | Triggered checkpoint 7963 | -6/Garrison | Discovered new exit (range 13) 7973 | -6/Garrison | Triggered checkpoint 8118 | -6/Garrison | Entered Factory 8118 | -6/Factory | Accompanied by 3 allies 8168 | -6/Factory | Allied Derelicts emerged from ambush trap array 8372 | -6/Factory | Build established: Scavenger-Sprinter 8396 | -6/Factory | Fabricated Remote Datajack (x2) 8607 | -6/Factory | Repaired VTOL Module+ 8734 | -6/Factory | Build established: Bothacker-Mutant 8872 | -6/Factory | Identified exit to Garrison 8874 | -6/Factory | Entered Garrison 8879 | -6/Garrison | Learned Factory security intel 8894 | -6/Garrison | Triggered checkpoint 8990 | -6/Garrison | Triggered checkpoint 8998 | -6/Garrison | Discovered new exit (range 21) 9023 | -6/Garrison | Core integrity fell below 50% 9026 | -6/Garrison | Triggered checkpoint 9037 | -6/Garrison | System corruption reached 10% 9038 | -6/Garrison | Core integrity fell below 20% 9043 | -6/Garrison | Destroyed by S-27 Virus with Autogun Last Messages --------------- 09029_ Stasis field depleted. 09029_ P-60 Hacker resets P-60 Hacker, system corruption cleaned. 09031_ Chainsword+ destroyed. 09032_ System corrupted: Matter fused (-8). 09033_ P-60 Hacker resets P-60 Hacker, system corruption cleaned. 09034_ Slammed into P-60 Hacker. 09034_ Triggered Stasis Trap. 09034_ A bubble of rippling energy engulfs the area. 09034_ Field strength at 94. 09034_ P-60 Hacker resets P-60 Hacker, system corruption cleaned. 09035_ Field strength at 80. 09035_ Relay Coupler [Sentry] destroyed. 09036_ Field strength at 66. 09036_ Relay Coupler [Hunter] destroyed. 09036_ Enh. Optical Array destroyed. 09036_ System corrupted by crushing effect (+3). 09036_ System corrupted by crushing effect (+1). 09036_ Knocked back. 09037_ P-60 Hacker resets B-48 Gladiator, system corruption cleaned. 09040_ P-60 Hacker resets P-60 Hacker, system corruption cleaned. Map ----- +----------------------------------------------------+ | ?????????????????????????????????????????? | | ?????????????????????????????????????????? | | ?????????????????????????????????????????? | | ?????????????????????????????????????????? | | ?????????????????????????????????????????? | | ?????????????????????????????????????????? | | ?????????????????????????????????????????? | | ?????????????????????????????????????????? | | ?????????????????????????????????????????? | | ?????????????????????????????????????????? | | ?????????????????????????????????????????? | | ?????????????????????????????????????????? | | ????????????????????????????###??????????? | | ???????????????????????????? #??????????? | | ????????????????????????????# #??????????? | | ???????????????????????????##+##?????????? | | ???????????????????????????# #???????"#? | | ???????????????????????##### ##### ##? | | ???????????????????????# ^^ #? | | ???????????????????????# #? | | ???????????????????????# ######+########? | | ???????????????????????# #????? #???????? | | ????????#??????????????# #??????#???????? | | ????????#